Cogmind - Beta 12 @@@ ROGUE MODE // 2023.04.27 @ 18:41:35 Player: Mr Goldstein Result: Destroyed by S-10 Pest with Light Assault Rifle Performance ------------- Evolutions (1) 500 Regions Visited (4) 800 Robots Destroyed (2) 10 Value Destroyed (20) 20 Prototype IDs (0) 0 Alien Tech Used (0) 0 Bonus (200) 200 TOTAL SCORE: 1530 Bonus ------- Pacifist 200 Cogmind --------- Core Integrity 0/400 Matter 300/300 Energy 98/100 System Corruption 0% Temperature Cool (0) Movement Core (50) Location -9/Mines Parts ------- > --- POWER (1) -------- (None) > --- PROPULSION (2) --- (None) > --- UTILITY (4) ------ (None) > --- WEAPON (2) ------- (None) > --- INVENTORY (5) ---- Improved Terrain Scan Processor Improved Terrain Scan Processor Improved Terrain Scan Processor Improved Terrain Scan Processor Peak State ------------ > --- POWER ------------ (None) > --- PROPULSION ------- (None) > --- UTILITY ---------- (None) > --- WEAPON ----------- Shock Bomb Launcher > --- INVENTORY -------- Light Treads Improved Terrain Scan Processor Improved Terrain Scan Processor Improved Terrain Scan Processor Improved Terrain Scan Processor [Rating: 4] Favorites ----------- Power None Propulsion Light Treads Treads Light Treads Utility None Weapon Shock Bomb Launcher Launcher Shock Bomb Launcher Build | -11 -10 -10 -9 -9 ------- Run | Jun Mat Min Mat Min Slots Evolved 2 | . . . 2 . Power . | . . . . . Propulsion . | . . . . . Utility 2 | . . . 2 . Weapon . | . . . . . Parts Attached 4 | 2 . . 2 . Power . | . . . . . Engine . | . . . . . Core . | . . . . . Reactor . | . . . . . Propulsion 3 | 2 . . 1 . Treads 3 | 2 . . 1 . Leg . | . . . . . Wheel . | . . . . . Hover . | . . . . . Flight . | . . . . . Utility . | . . . . . Device . | . . . . . Storage . | . . . . . Processor . | . . . . . Hackware . | . . . . . Protection . | . . . . . Artifact . | . . . . . Weapon 1 | . . . 1 . Energy Gun . | . . . . . Energy Cannon . | . . . . . Ballistic Gun . | . . . . . Ballistic Cannon . | . . . . . Launcher 1 | . . . 1 . Special Weapon . | . . . . . Impact Weapon . | . . . . . Slashing Weapon . | . . . . . Piercing Weapon . | . . . . . Special Melee Weapon . | . . . . . Unidentified Prototypes . | . . . . . Parts Lost 4 | . . 2 1 1 Power . | . . . . . Propulsion 3 | . . 2 . 1 Utility . | . . . . . Weapon 1 | . . . 1 . Highest Loss Streak 1 | . . 1 1 1 To Critical Strikes . | . . . . . Average Slot Usage (%) 13 | . 28 22 6 6 Treads 13 | . 28 22 4 6 Naked Turns 60 | . . . 40 20 Heaviest Build . | . . . . . Greatest Support 20 | 20 3 3 3 3 Greatest Overweight (x) . | . . . . . Average Overweight (x) . | . . . . . Largest Inventory Capacity 5 | 5 5 5 5 5 Average Capacity 5 | 5 5 5 5 5 Most Carried 5 | . 1 1 5 4 Average Carried 2 | . . 1 3 4 Final Capacity 5 | 5 5 5 5 5 Final Carried 4 | . 1 1 4 4 Class Distribution -------------------- 100% | Mutant Dominant Class ---------------- Mutant | -10/Materials Mutant | -10/Mines Mutant | -9/Materials Mutant | -9/Mines Resources | -11 -10 -10 -9 -9 ----------- Run | Jun Mat Min Mat Min Matter Collected 208 | 182 . 26 . . Remotely . | . . . . . Salvage Created 31 | . . . 31 . Parts 5 | . . . 5 . Haulers Intercepted . | . . . . . Recyclers Shooed . | . . . . . Parts Field Recycled . | . . . . . Retrieved Matter . | . . . . . Parts Self-Destructed . | . . . . . Prevented . | . . . . . Kills | -11 -10 -10 -9 -9 ------- Run | Jun Mat Min Mat Min Combat Hostiles Destroyed 2 | . . . 2 . AOE 2 | . . . 2 . Classes Destroyed 1 | . . . 1 . Swarmer 2 | . . . 2 . Best Kill Streak 2 | . . . 2 . Combat Bots Only 2 | . . . 2 . Max Kills in Single Turn 2 | . . . 2 . Gunslinging . | . . . . . Exploded 2 | . . . 2 . Melee . | . . . . . Uniques/NPCs Destroyed . | . . . . . Combat | -11 -10 -10 -9 -9 -------- Run | Jun Mat Min Mat Min Damage Taken 1007 | . . 384 539 84 Core 500 | . . 95 370 35 Absorbed by Shields . | . . . . . Core Remaining (%) 81 | 100 . 62 . . Volleys Fired 1 | . . . 1 . Largest 1 | . . . 1 . Hottest 36 | . . . 36 . Shots Fired 1 | . . . 1 . Gun . | . . . . . Cannon . | . . . . . Launcher 1 | . . . 1 . Special . | . . . . . Kinetic . | . . . . . Thermal . | . . . . . Explosive . | . . . . . Electromagnetic 1 | . . . 1 . Robot Hit Streak . | . . . . . Robot Miss Streak 1 | . . . 1 . Penetration Max . | . . . . . Secondary Targets . | . . . . . Shots Hit Robots . | . . . . . Core Hits 9 | . . 3 4 2 Critical Kills . | . . . . . Critical Parts Destroyed . | . . . . . Critical Strikes . | . . . . . Melee Attacks . | . . . . . Impact . | . . . . . Slashing . | . . . . . Piercing . | . . . . . Sneak Attacks . | . . . . . Combat Hostiles . | . . . . . Follow-up Attacks . | . . . . . Damage Inflicted 139 | . . 31 90 18 Guns . | . . . . . Cannons . | . . . . . Explosions 87 | . . . 87 . Melee . | . . . . . Ramming 52 | . . 31 3 18 Kinetic . | . . . . . Thermal . | . . . . . Explosive . | . . . . . Electromagnetic 87 | . . . 87 . Impact . | . . . . . Slashing . | . . . . . Piercing . | . . . . . Highest Corruption . | . . . . . Average Corruption . | . . . . . Corruption Purged . | . . . . . Corruption Blocked . | . . . . . Overload Shots . | . . . . . Overflow Damage 10 | . . . 10 . Projectiles . | . . . . . Explosions 10 | . . . 10 . Melee . | . . . . . Knockbacks . | . . . . . Impact . | . . . . . Kinetic . | . . . . . Secondary . | . . . . . Self-Inflicted Damage 18 | . . 12 1 5 Shots . | . . . . . Rammed 25 | . . 14 1 10 Targets Rammed 25 | . . 14 1 10 Kicked . | . . . . . Crushed . | . . . . . Highest Temperature . | . . . . . Average Temperature . | . . . . . Received Heat Transfer 192 | . . 84 108 . Siege Activations . | . . . . . Robots Corrupted . | . . . . . Combat Hostiles . | . . . . . Parts Fried . | . . . . . Impact Corruptions . | . . . . . Robots Melted . | . . . . . Combat Hostiles . | . . . . . Parts Melted . | . . . . . Heat Transferred . | . . . . . Parts Sabotaged . | . . . . . Parts Stolen . | . . . . . Parts Stripped . | . . . . . Power Chain Reactions . | . . . . . Missiles Intercepted . | . . . . . Alert | -11 -10 -10 -9 -9 ------- Run | Jun Mat Min Mat Min Peak Influence 130 | . . 30 130 50 Initial 50 | . . . . 50 Average 33 | . . 21 58 45 Maximum Alert Level . | . . . . . Low Security (%) 100 | 100 100 100 100 100 Level 1 . | . . . . . Level 2 . | . . . . . Level 3 . | . . . . . Level 4 . | . . . . . Level 5 . | . . . . . High Security . | . . . . . Max Security . | . . . . . Squads Dispatched 2 | . . . 2 . Investigation . | . . . . . Extermination . | . . . . . Reinforcement 2 | . . . 2 . Assault . | . . . . . Garrison . | . . . . . Intercept . | . . . . . Searches Triggered . | . . . . . Construction Impeded . | . . . . . Haulers Reinforced . | . . . . . Active Scanning Responses . | . . . . . Cargo Convoy Interrupts . | . . . . . Stealth | -11 -10 -10 -9 -9 --------- Run | Jun Mat Min Mat Min Distress Signals . | . . . . . Communications Jammed . | . . . . . Distress Signals . | . . . . . Times Spotted 41 | . . 22 15 4 Peak Tracking Total 15 | . . 15 10 4 Tactical Retreats 3 | . . 2 1 . Traps | -11 -10 -10 -9 -9 ------- Run | Jun Mat Min Mat Min Traps Triggered . | . . . . . Indirectly . | . . . . . Trap Hack Attempts . | . . . . . Triggered . | . . . . . Disarmed . | . . . . . Reprogrammed . | . . . . . Reused . | . . . . . Traps Extracted . | . . . . . Installed . | . . . . . Triggered . | . . . . . Machines | -11 -10 -10 -9 -9 ---------- Run | Jun Mat Min Mat Min Machines Disabled . | . . . . . Max in Single Turn . | . . . . . Machines Repaired . | . . . . . Machines Sabotaged . | . . . . . Overloaded Fab Kills . | . . . . . Hacking | -11 -10 -10 -9 -9 --------- Run | Jun Mat Min Mat Min Machines Accessed . | . . . . . Terminals . | . . . . . Fabricators . | . . . . . Repair Stations . | . . . . . Recycling Units . | . . . . . Scanalyzers . | . . . . . Garrison Access . | . . . . . Total Hacks . | . . . . . Successful . | . . . . . Failed . | . . . . . Catastrophic . | . . . . . Database Lockouts . | . . . . . Manual . | . . . . . Terminals . | . . . . . Fabricators . | . . . . . Repair Stations . | . . . . . Recycling Units . | . . . . . Scanalyzers . | . . . . . Garrison Access . | . . . . . Terminal Hacks . | . . . . . Fabricator Hacks . | . . . . . Repair Station Hacks . | . . . . . Recycling Unit Hacks . | . . . . . Scanalyzer . | . . . . . Garrison Access Hacks . | . . . . . Unauthorized Hacks . | . . . . . Terminals . | . . . . . Fabricators . | . . . . . Repair Stations . | . . . . . Recycling Units . | . . . . . Scanalyzers . | . . . . . Garrison Access . | . . . . . Data Cores Recovered . | . . . . . Used . | . . . . . Hacking Detections . | . . . . . Full Trace Events . | . . . . . Feedback Events . | . . . . . Feedback Blocked . | . . . . . Robot Schematics Acquired . | . . . . . Robots Built . | . . . . . Authchips . | . . . . . Time . | . . . . . Total Robot Build Rating . | . . . . . Part Schematics Acquired . | . . . . . Parts Built . | . . . . . Authchips . | . . . . . Time . | . . . . . Total Part Build Rating . | . . . . . Parts Repaired . | . . . . . Time . | . . . . . Parts Recycled . | . . . . . Recycled Matter . | . . . . . Retrieved Matter . | . . . . . Retrieved Components . | . . . . . Parts Scanalyzed . | . . . . . Part Schematics Acquired . | . . . . . Parts Damaged . | . . . . . Bothacking | -11 -10 -10 -9 -9 ------------ Run | Jun Mat Min Mat Min Used RIF Installer . | . . . . . Robots Hacked . | . . . . . Non-combat . | . . . . . Combat . | . . . . . Robot Hacks Applied . | . . . . . Relay Couplers Released . | . . . . . Fabnet Peak Effective % . | . . . . . Robots Rewired . | . . . . . Allies Hacked . | . . . . . Hacks Repelled . | . . . . . Allies | -11 -10 -10 -9 -9 -------- Run | Jun Mat Min Mat Min Total Allies 2 | . . 2 . . Largest Group 2 | . . 2 . . Highest-Rated Group 47 | . . 47 . . Highest-Rated Ally 31 | . . 31 . . Total Orders . | . . . . . Ally Attacks 6 | . . 6 . . Total Damage 115 | . . 115 . . Kills 4 | . . 4 . . Allies Corrupted . | . . . . . Allies Melted . | . . . . . Intel | -11 -10 -10 -9 -9 ------- Run | Jun Mat Min Mat Min Robot Analysis Total . | . . . . . Derelict Logs Recovered 1 | . . 1 . . Drone Launches . | . . . . . Drone Recoveries . | . . . . . Exploration | -11 -10 -10 -9 -9 ------------- Run | Jun Mat Min Mat Min Turns Passed 259 | 20 33 75 88 43 Spaces Moved 431 | 31 64 122 148 66 Core 430 | 30 64 122 148 66 Treads 1 | 1 . . . . Legs . | . . . . . Wheels . | . . . . . Hover . | . . . . . Flight . | . . . . . Fastest Speed 50 | 50 50 50 50 50 Average Speed 50 | 53 50 50 50 50 Slowest Speed 160 | 160 50 50 50 50 Overloaded Moves . | . . . . . Propulsion Burnouts . | . . . . . Robots Hopped . | . . . . . Cave-ins Triggered . | . . . . . Exploration Rate (%) 23 | 4 26 40 21 26 Regions Visited 4 Branch Regions 2 Pre-discovered Areas . | . . . . . Known Exits Taken . | . . . . . Unknown Exits Taken 4 | 1 1 1 1 . Scrap Searched . | . . . . . Spaces Dug . | . . . . . Terrain Destroyed . | . . . . . Melee . | . . . . . Projectile . | . . . . . AOE . | . . . . . Terrain Rammed . | . . . . . Walls Destroyed . | . . . . . Machines Disabled . | . . . . . Actions | -11 -10 -10 -9 -9 --------- Run | Jun Mat Min Mat Min Total 466 | 32 64 135 159 76 Wait 4 | . . . 4 . Move 427 | 30 63 121 147 66 Hop . | . . . . . Pick Up 5 | . 1 . 4 . Fast Attach 3 | 2 . . 1 . Attach 1 | . . . 1 . Detach . | . . . . . Swap . | . . . . . Drop . | . . . . . Fire 1 | . . . 1 . Melee . | . . . . . Ram 25 | . . 14 1 10 Kick . | . . . . . Crush . | . . . . . Escape Stasis . | . . . . . Rewire . | . . . . . Trap . | . . . . . Miscellaneous . | . . . . . Route ------- -11/Junkyard -10/Materials -10/Mines -9/Materials -9/Mines History --------- Turn | Location | Event 3 | -11/Junkyard | Discovered new exit (range 16) 21 | -11/Junkyard | Entered Materials 47 | -10/Materials | Discovered new exit (range 15) 54 | -10/Materials | Entered Mines 55 | -10/Mines | Assembled infested the area 60 | -10/Mines | Assisted by a Guerilla fighting off Assembled 74 | -10/Mines | Learned Materials stockpile data 125 | -10/Mines | Discovered new exit (range 3) 129 | -10/Mines | Entered Materials 129 | -9/Materials | Evolved 2 slots: Utility x2 167 | -9/Materials | Core integrity fell below 50% 185 | -9/Materials | Core integrity fell below 20% 210 | -9/Materials | Discovered new exit (range 14) 217 | -9/Materials | Entered Mines 260 | -9/Mines | Destroyed by S-10 Pest with Light Assault Rifle Last Messages --------------- 00169_ S-10 Pest destroyed. 00169_ Door malfunctions. 00169_ Destroyed Sensor Array. 00169_ S-10 Pest destroyed. 00175_ Shock Bomb Launcher destroyed. 00177_ S-10 Pest destroyed. 00185_ Slammed into K-01 Serf. 00192_ O-16 Technician: "IFF HANDSHAKE FAILED. SECURING TERMINAL." 00195_ ALERT: Hostiles spotted, dispatching reinforcements to Terminal M008. 00199_ K-01 Serf collects debris. 00210_ EXIT=FOUND 00211_ ALERT: Hostiles spotted, dispatching reinforcements to Terminal M004. LOCATION=UNKNOWN GOAL=ESCAPE 00220_ S-10 Pest destroyed. 00224_ Slammed into T-07 Excavator. 00240_ Lgt. Treads destroyed. 00241_ Slammed into T-07 Excavator. Map ----- +----------------------------------------------------+ | ???????????????????????????????????????# # | | ???????????????????????????????????????# ## | | ???????????????????????????????????????## #### | | ????????????????????????????????????????###??## # | | ??????????????????????????????????????????????# ## | | ??????????????????????????????????????????????# #? | | ???????????????????????????????????##?????????# #? | | ???????????????????????????????????# #????????# #? | | ??????????????????????????????????? ????????# #? | | ???????????????????????????????????? ????????# #? | | ???????????????????????????????????? ##??????# #? | | ???????????????????????????????????? $ ##?????# #? | | ??????????????????????????????###??? #?????# #? | | ????????????????????????????## #??## ??????# #? | | ???????????????????????????## ??? ??????#%#? | | ???????????????????????????# ????# #??????# #? | | ???????????????????????????# ????# #??????# #? | | ???????????????????????????# #????# #??????# #? | | ???????????????????????????# #????# ########%#? | | ????????????????########???# #???## % %% #? | | ???????????????## ##??# #??## ##########? | | ???????????????# #??# #### ##????????? | | ???????????????# #### ## ##???????? | | ???????????????# ## #???????? | | ???????????????# s ## #??????? | | ???????????????# ## @ ##?# #?????? | | ??????????????## #### ##??? ????? | | ?????????????## ##?# ####????? #??? | | ???????????### ## ##????????? #??? | | ??????????## ## ####?????????? #??? | | ??????????# ## ##?????????????? ##??? | | ?????????# ## ### #????????????????#???? | | ?????????# #?## ##?# #????????????????????? | | ?????????## #???####??## ????????????????????? | | ??????????###???????????# ???????????????????? | | ????????????????????????# ???????????????????? | | ????????????????????????# ???????????????????? | | ???????????????????????? #??????????????????? | | ????????????????????????## #???????????????????? | | ??????????????????????????####???????????????????? | | ?????????????????????????????????????????????????? | | ?????????????????????????????????????????????????? | | ?????????????????????????????????????????????????? | | ?????????????????????????????????????????????????? | | ?????????????????????????????????????????????????? | | ?????????????????????????????????????????????????? | | ?????????????????????????????????????????????????? | | ?????????????????????????????????????????????????? | | ?????????????????????????????????????????????????? | | ?????????????????????????????????????????????????? | +----------------------------------------------------+ Best States ------------- Heat Dissipation 28 Energy Generation 5 Energy Capacity 100 Matter Stores 300 Matter Capacity 300 Sight Range 16 Terrain Scan Density 10 Evasion (%) 50 Item Schematics ----------------- None Robot Schematics ------------------ None Fabricated ------------ Nothing Alien Tech Used ----------------- None Achievements -------------- None Challenges ------------ None Game ------ Seed TeslaCoolantShearcannon Manual? 0 Play Time 00:04:21 Cumulative 152.1 hours Start 2023.04.27 @ 18:37:44 End 2023.04.27 @ 18:41:35 Sessions 1 Manual Loads 0 Difficulty Rogue Special Mode None Game No. 447 Rogue 447 Adventurer 0 Explorer 0 Win Type - Total 7 Types 6/0/0/1/0/0/0/0/0 Lore% 66 Gallery% 71 Achievement% 61 Wizard Run 0 Options --------- ASCII 0 Keyboard 0 Movement Numpad Keybinds 0 Fullscreen 1 Font 16/SmallcapsGlow Map View 75x55 Tactical HUD 1 Map Filters NONE Filters NONE Steam 1 RUN: 9067bab5-9023-4d74-88f7-288b660d5545